bitfinex-derivatives/quotes_ETHF0:USTF0_20251107
["timestamp","ask_amount","ask_price","bid_price","bid_amount"]
[1762479771923,0.49227,3292.6,3292.3,3.2078]
[1762479772118,0.49227,3292.6,3292.2,0.00455386]
[1762479772119,0.82992,3292.3,3292.2,0.00455386]
[1762479773120,0.82996,3292.0,3291.9,3.2078]
[1762479773626,0.82996,3292.0,3291.9,3.70018]
[1762479773922,0.3376,3292.0,3291.9,3.70018]
[1762479774122,0.2067,3292.2,3292.0,0.49236]
[1762479774324,0.69904,3292.2,3292.0,0.49236]
[1762479774524,0.2067,3292.2,3291.9,3.2078]
[1762479774724,0.3376,3292.0,3291.9,3.2078]
[1762479774923,0.2067,3292.2,3292.0,0.49236]
[1762479775120,0.2067,3292.2,3291.9,3.2078]
[1762479776626,0.69903,3292.2,3292.1,0.49235]
[1762479776818,0.2067,3292.2,3292.1,0.49235]
[1762479777725,0.2067,3292.2,3291.9,3.2078]
[1762479777921,0.69903,3292.2,3291.9,3.2078]
[1762479778629,0.82996,3292.0,3291.9,3.70018]
[1762479778825,6.2819,3292.2,3291.5,0.00244255]
[1762479779034,1.03672,3291.6,3291.5,0.00244255]
[1762479779230,1.03910859,3291.6,3291.5,0.00244255]
[1762479779832,0.54668859,3291.6,3291.5,0.00244255]
[1762479780032,0.33998859,3291.6,3291.5,0.49488255]
[1762479780428,0.00238859,3291.6,3291.5,0.85458255]
[1762479781541,0.00455386,3292.3,3292.2,0.3597]
[1762479781731,0.49687386,3292.3,3291.6,3.4147]
[1762479782034,0.49687386,3292.3,3292.0,0.49235]
[1762479782236,0.00455386,3292.3,3292.2,0.85203]
[1762479782431,0.2067,3292.2,3291.6,3.2078]
[1762479782634,0.5443,3291.6,3291.5,0.49488255]
[1762479782835,0.49239,3291.8,3291.5,0.49488255]
[1762479783033,3.2078,3291.9,3291.5,0.00244255]
[1762479783332,1.03672,3291.6,3291.5,0.00244255]
[1762479783527,0.49248,3291.2,3290.9,0.49252]
[1762479783730,3.2078,3291.3,3290.1,3.2078]
[1762479783929,3.2078,3290.3,3290.1,0.49264]
[1762479784532,3.2078,3290.3,3290.1,0.49612226]
[1762479784733,3.70042,3290.3,3290.1,0.00348226]
[1762479784936,0.3436,3290.2,3290.1,0.00348226]
[1762479785734,0.00455386,3290.5,3290.3,0.49262]
[1762479786037,0.00455386,3290.5,3290.4,0.3505]
[1762479786735,3.2078,3291.2,3290.7,0.2098]
[1762479786936,3.2078,3291.2,3290.9,0.49252]
[1762479787140,3.2078,3291.2,3291.0,0.49251]
[1762479787440,3.2078,3291.7,3291.4,0.49244]
[1762479787734,3.2078,3291.7,3291.2,0.00455386]
[1762479788032,3.2078,3291.7,3291.5,0.49243]
[1762479788233,0.00455386,3291.9,3291.6,0.49242]
[1762479788432,0.00455386,3291.9,3291.2,0.00455386]
[1762479788640,3.70022,3291.6,3291.2,0.00455386]
[1762479788941,3.70022,3291.6,3291.2,0.49703386]
[1762479789337,0.00455386,3291.9,3291.2,0.49703386]
[1762479789338,0.00455386,3291.9,3291.3,3.2078]
[1762479789533,0.00455386,3291.9,3291.8,0.49239]
[1762479789836,0.00455386,3291.9,3291.8,0.84289]
[1762479790035,0.00455386,3291.9,3291.8,0.3505]
[1762479790234,0.49693386,3291.9,3291.7,3.2078]
[1762479790433,0.49693386,3291.9,3291.2,9.95355386]
[1762479790434,3.2078,3291.8,3291.2,9.95355386]
[1762479790836,0.49241,3291.7,3291.4,0.49244]
[1762479791035,0.49241,3291.7,3291.2,10.44602386]
[1762479791235,0.49241,3291.7,3291.3,0.49246]
[1762479791944,3.2078,3291.8,3291.2,0.00455386]
[1762479792439,0.49244,3291.5,3291.2,0.49702386]
[1762479792640,3.2078,3291.4,3291.2,0.49702386]
[1762479792836,3.70025,3291.4,3291.2,0.00455386]
[1762479793539,0.3436,3291.3,3291.2,0.00455386]
[1762479797636,0.83607,3291.3,3291.2,0.00455386]
[1762479799142,0.2093,3291.0,3289.9,3.2078]
[1762479799345,0.49263,3290.2,3289.8,0.49268]
[1762479799644,0.49263,3290.2,3289.9,0.49266]
[1762479799845,0.49263,3290.2,3290.0,0.49266]
[1762479800147,0.49263,3290.2,3289.5,3.2078]
[1762479800148,0.83623,3290.2,3289.9,0.49268]
[1762479800337,0.3436,3290.2,3290.1,0.49613226]
[1762479800638,0.49255,3290.8,3290.1,0.00348226]
[1762479800840,3.2078,3291.4,3290.9,0.84303]
[1762479801036,3.2078,3291.4,3291.1,0.49249]
[1762479801238,3.2078,3291.4,3291.2,0.49248]
[1762479801835,0.49247,3291.3,3290.6,9.937]
[1762479802036,3.4171,3291.4,3291.2,0.49248]
[1762479802232,3.2078,3291.4,3290.6,9.937]
[1762479802433,3.2078,3291.4,3290.8,0.49254]
[1762479802637,3.2078,3291.4,3291.2,0.49248]
[1762479803047,0.49247,3291.3,3291.1,0.49249]
[1762479803445,0.3436,3291.3,3291.2,0.49248]
[1762479803943,0.83607,3291.3,3290.6,9.937]
[1762479804141,0.3436,3291.3,3291.2,0.49248]
[1762479804638,0.3436,3291.3,3290.6,9.937]
[1762479805038,0.3436,3291.3,3290.8,3.2078]
[1762479805236,0.3436,3291.3,3290.2,2.71292483]
[1762479805237,0.83622,3290.3,3290.2,2.71292483]
[1762479805444,0.83622,3290.3,3290.1,0.00348226]
[1762479805445,0.83623,3290.2,3290.1,0.00348226]
[1762479806138,3.2078,3290.3,3290.1,0.00348226]
[1762479806334,3.2078,3290.8,3290.1,0.00348226]
[1762479806534,3.2078,3290.8,3290.7,0.49256]
[1762479807139,3.70034,3290.8,3290.1,0.00348226]
[1762479807344,0.49257,3290.7,3290.1,0.00348226]
[1762479807642,0.49262,3290.3,3290.1,0.49612226]
[1762479807847,0.49262,3290.3,3290.1,0.00348226]
[1762479808344,3.2078,3290.4,3290.1,0.00348226]
[1762479808345,0.83623,3290.2,3290.1,0.00348226]
[1762479809240,0.83623,3290.2,3290.1,0.49613226]
[1762479809241,0.3436,3290.2,3290.1,0.49613226]
[1762479809446,0.49263,3290.2,3290.1,0.00348226]
[1762479810144,3.2078,3290.4,3290.3,0.49262]
[1762479810337,3.2078,3290.4,3290.1,0.00348226]
[1762479810640,3.4171,3290.4,3290.1,0.00348226]
[1762479810947,0.49263,3290.2,3290.1,0.00348226]
[1762479811149,0.83623,3290.2,3290.1,0.00348226]
[1762479811741,3.2078,3290.4,3290.1,0.00348226]
[1762479811946,3.2078,3290.4,3290.3,0.49262]
[1762479812449,3.2078,3290.4,3290.1,0.00348226]
[1762479812648,3.2078,3290.4,3290.2,0.49262]
[1762479813348,3.2078,3290.4,3290.3,0.49262]
[1762479813547,3.2078,3290.4,3290.1,0.00348226]
[1762479813740,0.83623,3290.2,3290.1,0.00348226]
[1762479813937,3.90971,3290.4,3290.1,0.00348226]
[1762479814141,0.49262,3290.3,3290.1,0.00348226]
[1762479814337,0.49263,3290.2,3290.1,0.00348226]
[1762479814542,3.90971,3290.4,3290.2,0.49263]
[1762479815053,3.9097,3290.4,3290.1,0.49611226]
[1762479815747,3.4171,3290.4,3290.1,0.00348226]
[1762479815948,0.49263,3290.2,3290.1,0.00348226]
[1762479816153,0.83623,3290.2,3290.1,0.00348226]
[1762479816950,0.3436,3290.2,3290.1,0.49613226]
[1762479817250,0.49262,3290.3,3290.1,0.49612226]
[1762479817453,3.9097,3290.4,3290.2,0.49263]
[1762479817845,3.2078,3290.4,3290.3,0.79012]
[1762479818046,0.3101,3290.5,3290.4,0.4926]
[1762479818249,0.49263,3290.2,3290.1,0.00348226]
[1762479818553,3.2078,3290.5,3290.4,0.4926]
[1762479818754,0.49256,3290.7,3290.5,0.49259]
[1762479818950,7.0748,3290.9,3290.5,0.49259]
[1762479819152,0.49256,3290.8,3290.5,0.49259]
[1762479819353,7.0748,3290.9,3290.1,0.00348226]
[1762479819555,3.2078,3290.5,3290.1,0.00348226]
[1762479819754,3.70039,3290.5,3290.2,0.49263]
[1762479820252,0.3101,3290.2,3290.1,0.00348226]
[1762479820850,0.3101,3290.2,3290.1,0.49613226]
[1762479821050,3.2078,3290.5,3290.4,0.4926]
[1762479821245,0.49261,3290.4,3290.2,0.49262]
[1762479821449,0.49261,3290.4,3290.1,0.00348226]
[1762479821450,0.49263,3290.3,3290.1,0.00348226]
[1762479821644,0.3101,3290.2,3290.1,0.00348226]
[1762479821845,3.2078,3291.3,3290.4,0.1803]
[1762479822152,3.2078,3291.3,3291.0,0.49251]
[1762479822552,3.2078,3291.3,3291.2,0.49248]
[1762479825156,3.2078,3291.7,3291.0,0.1803]
[1762479825348,0.67863,3291.6,3291.2,0.49248]
[1762479825656,0.3101,3291.4,3291.3,0.49246]
[1762479826156,3.2078,3291.7,3291.6,0.2975]
[1762479826356,3.2078,3292.1,3291.8,0.78989]
[1762479827250,0.1862,3292.8,3291.8,0.78989]
[1762479827251,3.2078,3292.5,3291.8,0.78989]
[1762479828053,3.2078,3292.5,3292.4,0.4923]
[1762479828848,0.1862,3293.4,3293.0,0.49221]
[1762479828849,3.2078,3293.3,3293.0,0.49221]
[1762479829051,3.21148751,3293.3,3293.1,0.49219]
[1762479829951,0.00368751,3293.3,3293.1,0.49219]
[1762479830456,0.00368751,3293.3,3293.2,0.2975]
[1762479830658,0.00455386,3293.5,3293.4,0.2975]
[1762479830959,0.00455386,3293.5,3293.4,0.4778]
[1762479831150,3.2078,3294.1,3293.4,0.1803]
[1762479831351,3.2078,3294.1,3294.0,0.49206]
[1762479831662,0.00364074,3294.1,3293.4,0.1803]
[1762479831955,0.00364074,3294.1,3293.9,0.49208]
[1762479832661,0.00455386,3294.3,3294.2,0.2975]
[1762479832851,3.2078,3294.5,3294.0,0.1803]
[1762479832852,3.2078,3294.5,3294.4,0.2975]
[1762479833158,3.2078,3295.0,3294.8,0.49194]
[1762479833551,3.394,3295.8,3295.3,0.49186]
[1762479833753,3.88835183,3295.8,3295.3,0.49186]
[1762479834046,3.2078,3295.4,3295.2,0.00455386]
[1762479834254,0.49194,3294.9,3294.4,0.492]
[1762479834453,3.2078,3294.8,3294.2,3.2078]
[1762479834656,3.2078,3294.8,3294.6,0.49197]
[1762479834857,3.2078,3294.8,3294.7,0.2975]
[1762479835051,0.1862,3297.0,3294.6,0.49197]
[1762479835052,0.1862,3297.6,3295.8,0.1803]
[1762479835259,3.2078,3297.3,3296.6,3.2078]
[1762479835552,3.2078,3297.3,3296.7,0.49165]
[1762479835755,0.1862,3297.0,3296.6,3.2078]
[1762479835950,0.3101,3296.7,3296.6,3.2105457]
[1762479836551,0.3101,3296.7,3296.6,0.0027457]
[1762479836953,0.00816925,3297.0,3296.7,0.49165]
[1762479837354,0.00816925,3297.0,3296.6,0.0027457]
[1762479837754,0.3101,3296.7,3296.6,0.0027457]
[1762479839359,0.3101,3296.7,3296.6,4.57e-05]
[1762479840159,0.49178,3295.9,3295.5,3.2078]
[1762479840365,0.3101,3295.6,3295.1,3.2078]
[1762479840662,0.1862,3295.6,3294.7,3.2078]
[1762479840957,0.49184,3295.5,3294.7,3.2078]
[1762479841161,0.49186,3295.4,3294.8,0.00455386]
[1762479841956,0.1862,3295.6,3294.8,0.00455386]
[1762479842156,3.2078,3296.1,3294.8,0.00455386]
[1762479842356,0.49177,3296.0,3295.2,3.2078]
[1762479842560,3.2078,3296.1,3295.7,0.4918]
[1762479842758,0.49177,3296.0,3295.8,0.49179]
[1762479842955,0.49181,3295.7,3294.8,3.21235386]
[1762479843263,3.2078,3296.1,3295.2,3.2078]
[1762479844256,3.2078,3296.1,3295.9,0.49177]
[1762479844457,3.69949,3296.5,3296.2,0.49173]
[1762479844760,3.2078,3296.5,3296.3,0.49172]
[1762479845364,0.49165,3296.8,3295.6,4.2714]
[1762479845365,3.2078,3296.9,3296.6,0.49167]
[1762479845570,3.2078,3296.9,3296.4,0.00455386]
[1762479845760,3.5586,3296.5,3296.4,0.00455386]
[1762479845966,0.49179,3295.9,3295.6,3.2078]
[1762479846165,0.49177,3296.0,3295.6,3.2078]
[1762479846367,0.4918,3295.8,3295.6,3.2078]
[1762479846867,0.4918,3295.8,3295.6,3.69962]
[1762479847063,0.4918,3295.8,3295.6,3.2078]
[1762479848071,0.4918,3295.8,3295.6,3.69962]
[1762479848569,0.49184,3295.6,3295.4,0.00455386]
[1762479848868,0.3508,3295.5,3295.4,0.00455386]
[1762479849461,0.49194,3294.9,3294.6,3.2078]
[1762479849658,0.3508,3294.8,3294.6,3.2078]
[1762479850268,0.49188,3295.2,3294.7,0.49507969]
[1762479850468,3.2078,3295.3,3294.7,0.00312969]
[1762479850668,3.21235386,3295.3,3294.7,0.49507969]
[1762479850872,3.21235386,3295.3,3294.9,0.49193]
[1762479851174,3.21235386,3295.3,3294.7,0.00312969]
[1762479851372,0.49193,3294.9,3294.7,0.00312969]
[1762479851868,0.3508,3294.8,3294.7,0.00312969]
[1762479852369,3.21235386,3295.3,3294.7,0.00312969]
[1762479852571,0.49192,3295.0,3294.9,0.49192]
[1762479852774,3.21235386,3295.3,3294.8,0.49194]
[1762479852969,0.4919,3295.2,3295.0,0.49191]
[1762479853169,3.21235386,3295.3,3294.7,0.00312969]
[1762479853370,0.49193,3295.0,3294.9,0.49193]
[1762479853672,3.70423386,3295.3,3295.1,0.4919]
[1762479854468,0.49193,3294.9,3294.7,0.00312969]
[1762479854670,0.3508,3294.8,3294.7,0.00312969]
[1762479855273,0.49207,3294.0,3293.9,0.49208]
[1762479855476,3.2078,3294.3,3293.7,3.2078]
[1762479855673,0.34616503,3294.2,3293.7,3.2078]
[1762479855981,0.68069,3295.2,3295.0,0.49191]
[1762479856168,0.68069,3295.2,3294.0,0.1659]
[1762479856169,0.83818008,3295.1,3294.8,0.49194]
[1762479856373,0.00314714,3295.1,3295.0,0.49191]
[1762479856780,0.49193,3294.9,3294.8,0.00378591]
[1762479856975,0.00314714,3295.1,3295.0,0.82591]
[1762479857678,0.00314714,3295.1,3295.0,8.82591]
[1762479857882,3.2078,3296.1,3295.2,0.1924]
[1762479858078,0.49177,3296.0,3295.8,0.49179]
[1762479858885,0.00354003,3296.0,3295.8,0.49179]
[1762479859183,0.49531003,3296.0,3295.8,0.49179]
[1762479859383,0.3508,3295.7,3295.6,0.00455386]
[1762479859590,3.88909573,3295.7,3295.6,0.00455386]
[1762479859888,0.49178,3295.9,3295.6,0.00455386]
[1762479860092,0.82225911,3295.8,3295.6,0.00455386]
[1762479860286,0.4918,3295.8,3295.6,0.00455386]
[1762479860775,0.00354003,3296.0,3295.6,0.00455386]
[1762479860980,1.11086861,3295.9,3295.6,0.00455386]
[1762479861180,0.82241333,3295.8,3295.6,0.00455386]
[1762479861380,0.4918,3295.8,3295.6,0.00455386]
[1762479862084,0.3508,3295.7,3295.6,0.00455386]
[1762479862286,0.68179325,3295.7,3295.6,0.00455386]
[1762479862887,0.3508,3295.7,3295.6,0.00455386]
[1762479863186,1.62377437,3295.7,3295.6,0.00455386]
[1762479863590,1.27297437,3295.7,3295.6,0.00455386]
[1762479864084,0.78116437,3295.7,3295.6,0.00455386]
[1762479864285,1.27297437,3295.7,3295.6,0.00455386]
[1762479864880,4.83157437,3295.7,3295.6,0.00455386]
[1762479865083,1.62377437,3295.7,3295.6,0.00455386]
[1762479865582,1.13196437,3295.7,3295.6,0.49637386]
[1762479865787,1.27297437,3295.7,3295.6,0.00455386]
[1762479865983,0.78116437,3295.7,3295.6,0.49637386]
[1762479866285,1.27297437,3295.7,3295.6,0.83037386]
[1762479866584,4.83157437,3295.7,3295.6,0.00455386]
[1762479866778,0.84273,3294.9,3294.8,0.00378591]
[1762479866981,0.3508,3294.9,3294.8,0.00378591]
[1762479867178,3.3966,3295.2,3294.9,0.49193]
[1762479867381,0.49187,3295.3,3295.0,0.49191]
[1762479867582,0.78206808,3295.2,3295.0,0.49191]
[1762479867778,1.25461817,3295.8,3295.4,0.49185]
[1762479867983,3.2078,3295.6,3295.0,0.4919]
[1762479868184,0.78207152,3295.5,3294.8,0.00378591]
[1762479868390,0.78207152,3295.4,3294.8,0.00378591]
[1762479868586,0.49186,3295.4,3294.8,0.00378591]
[1762479868892,0.49186,3295.4,3295.2,0.49188]
[1762479869185,0.49182,3295.7,3295.2,0.49188]
[1762479869493,1.27448774,3295.6,3295.3,0.49187]
[1762479869689,0.49185,3295.5,3295.3,0.49187]
[1762479869891,0.49185,3295.4,3295.1,0.49189]
[1762479870092,0.49187,3295.3,3295.1,0.49189]
[1762479870492,0.1888,3295.8,3295.0,3.2078]
[1762479870493,0.49189,3295.2,3295.0,3.2078]
[1762479870692,0.49189,3295.2,3295.0,3.69971]
[1762479871088,0.49189,3295.2,3295.1,0.334]
[1762479871291,3.21134003,3296.0,3295.2,0.1924]
[1762479871490,3.21134003,3296.0,3295.4,3.2078]
[1762479871794,3.21134003,3296.0,3295.3,0.49187]
[1762479871996,3.21134003,3296.0,3295.2,0.1924]
[1762479872198,0.49181,3295.8,3295.5,0.49184]
[1762479872399,3.21134003,3296.0,3295.5,0.49184]
[1762479872591,0.49182,3295.6,3295.2,0.1924]
[1762479872792,3.21134003,3296.0,3295.2,0.1924]
[1762479873091,0.49185,3295.5,3295.2,0.49188]
[1762479873297,0.49188,3295.3,3295.0,3.69971]
[1762479873490,0.49188,3295.2,3295.0,3.69971]
[1762479873696,0.1888,3295.5,3295.0,3.6997]
[1762479873697,0.49188,3295.3,3295.0,3.6997]
[1762479874296,0.49185,3295.4,3295.0,3.2078]
[1762479874602,0.49185,3295.4,3295.2,0.49188]
[1762479874795,0.1888,3295.5,3295.0,3.2078]
[1762479875001,0.81783,3294.9,3294.8,0.00378591]
[1762479875299,0.3259,3294.1,3293.9,0.49208]
[1762479875600,0.00455386,3294.3,3293.6,3.2078]
[1762479876093,0.49203,3294.2,3293.6,3.2078]
[1762479876299,0.00455386,3294.3,3293.6,3.21043308]
[1762479876502,0.00455386,3294.3,3294.0,0.49206]
[1762479876695,0.00455386,3294.3,3293.6,3.21043308]
[1762479876998,0.49658386,3294.3,3293.6,3.21043308]
[1762479877300,0.00455386,3294.3,3294.1,0.49204]
[1762479878103,0.49657386,3294.3,3294.0,3.3953]
[1762479878300,0.49204,3294.2,3294.0,3.2078]
[1762479878508,0.3095,3294.1,3294.0,3.2078]
[1762479878801,0.49208,3293.9,3293.7,0.49211]
[1762479879000,0.00455386,3294.3,3293.8,0.49208]
[1762479879307,0.49208,3293.9,3293.6,3.70254308]
[1762479879599,0.49208,3293.9,3293.7,0.4921]
[1762479879904,0.00455386,3294.3,3293.7,0.4921]
[1762479880204,0.49207,3294.0,3293.7,0.49211]
[1762479880396,0.49208,3293.9,3293.7,0.49211]
[1762479880796,0.49209,3293.8,3293.6,3.21043308]
[1762479881004,0.49209,3293.8,3293.7,0.49211]
[1762479881204,0.00455386,3294.3,3293.8,0.49208]
[1762479881400,0.80154,3294.2,3293.6,3.21043308]
[1762479881710,0.00455386,3294.3,3293.6,3.21043308]
[1762479881711,0.00455386,3294.3,3293.8,0.49209]
[1762479882004,3.2078,3295.5,3294.7,0.3141]
[1762479882308,3.2078,3295.5,3294.6,3.3953]
[1762479882493,0.49185,3295.4,3295.0,0.4919]
[1762479882701,3.2078,3295.5,3294.6,3.3953]
[1762479882900,0.49188,3295.3,3295.1,0.4919]
[1762479883205,0.49188,3295.2,3295.1,0.4919]
[1762479883704,0.4919,3295.1,3295.0,0.49191]
[1762479884100,0.4919,3295.1,3294.9,0.00455386]
[1762479884101,0.80141,3295.0,3294.9,0.00455386]
[1762479885103,0.49204,3294.2,3293.7,3.2078]
[1762479885303,0.49205,3294.1,3293.7,3.2078]
[1762479885604,0.49207,3294.0,3293.8,0.49209]
[1762479885801,0.49207,3294.0,3293.9,0.49208]
[1762479886200,3.2078,3294.5,3293.7,3.2078]
[1762479886401,0.49209,3293.8,3293.7,3.2078]
[1762479887102,0.80161,3293.7,3293.6,0.00263308]
[1762479887300,4.00941,3293.7,3293.6,0.00263308]
[1762479890607,0.80171,3293.0,3292.9,3.2078]
[1762479891605,0.80470237,3293.0,3292.9,3.21057268]
[1762479891805,0.80470237,3293.0,3292.9,0.00277268]
[1762479892005,0.00299237,3293.0,3292.9,0.00277268]
[1762479892201,0.49520237,3293.0,3292.9,0.00277268]
[1762479893316,0.80470237,3293.0,3292.9,0.00277268]
[1762479898411,0.90780237,3293.0,3292.9,0.00277268]
[1762479898809,0.90780237,3293.0,3291.0,2.90042483]
[1762479898810,0.3095,3292.7,3292.2,0.49233]
[1762479899016,3.5173,3292.7,3292.2,0.49233]
[1762479899409,0.49234,3292.2,3291.9,3.2078]
[1762479899617,0.49235,3292.1,3292.0,0.49236]
[1762479899909,3.2078,3292.3,3291.6,0.49241]
[1762479900109,0.49241,3291.7,3291.6,0.00227163]
[1762479900314,0.80191,3291.7,3291.6,0.00227163]
[1762479900713,0.1902,3291.5,3290.7,0.49254]
[1762479901018,0.49252,3291.0,3290.9,0.49252]
[1762479901214,0.00455386,3291.4,3291.1,0.49249]
[1762479901215,0.49248,3291.2,3291.1,0.49249]
[1762479901415,0.49247,3291.3,3290.8,3.2078]
[1762479901612,0.00455386,3291.4,3291.1,0.49249]
[1762479901820,0.00455386,3291.4,3291.2,0.49248]
[1762479902118,0.80198,3291.2,3291.1,0.00340768]
[1762479902414,4.00978,3291.2,3291.1,0.00340768]
[1762479903516,0.49264,3290.2,3290.0,3.3953]
[1762479903706,0.49267,3290.0,3289.6,3.2078]
[1762479903911,3.2078,3290.4,3290.3,0.3141]
[1762479904114,3.7003,3291.1,3290.8,0.49253]
[1762479904312,0.1902,3291.0,3290.4,0.1875]
[1762479904615,0.1902,3291.0,3290.4,0.00260564]
[1762479904616,0.79039,3290.5,3290.4,0.00260564]
[1762479905713,0.2978,3290.5,3290.4,0.00260564]
[1762479905912,3.2078,3290.7,3290.4,0.00260564]
[1762479906217,0.49258,3290.6,3290.4,0.00260564]
[1762479906813,0.2978,3290.5,3290.4,0.00260564]
[1762479907211,0.2978,3290.5,3289.6,3.2078]
[1762479907212,0.4927,3289.8,3289.6,3.2078]
[1762479907409,0.2978,3289.7,3289.6,3.2078]
[1762479908216,3.2078,3290.3,3289.6,3.2099782]
[1762479908409,0.2978,3289.7,3289.6,3.2099782]
[1762479908914,3.2078,3290.3,3289.6,3.7026882]
[1762479909114,0.4927,3289.8,3289.6,3.7026882]
[1762479909321,0.2978,3289.7,3289.6,3.2099782]
[1762479909620,0.2978,3289.7,3289.6,0.0021782]
[1762479910120,3.70048,3289.9,3289.6,0.4948982]
[1762479910318,0.4927,3289.8,3289.6,0.4948982]
[1762479910518,0.4927,3289.8,3289.6,0.0021782]
[1762479910716,3.2078,3289.9,3289.6,0.0021782]
[1762479910918,3.3304,3290.4,3289.6,0.4948882]
[1762479911116,3.3304,3290.4,3289.6,0.0021782]
[1762479911316,0.49269,3289.8,3289.6,0.4948982]
[1762479912112,0.2978,3289.7,3289.6,0.0021782]
[1762479912718,0.2978,3289.7,3288.4,0.23191682]
[1762479912719,0.49283,3288.9,3288.7,3.2078]
[1762479912917,0.2978,3288.8,3288.7,3.2078]
[1762479913114,0.4929,3288.5,3288.3,3.2078]
[1762479913816,0.4929,3288.5,3288.4,0.2883]
[1762479913817,0.00251035,3288.5,3288.4,0.2883]
[1762479914218,0.1382,3288.0,3285.8,3.2078]
[1762479914418,3.2078,3286.8,3286.7,0.2883]
[1762479914618,0.49311,3287.0,3286.7,0.2883]
[1762479914819,0.00456093,3287.2,3286.7,0.2883]
[1762479915220,0.00456093,3287.2,3287.1,0.2883]
[1762479915420,3.2078,3287.7,3287.6,0.78132]
[1762479915619,3.2078,3288.2,3287.9,0.49297]
[1762479916016,3.2078,3288.2,3287.7,0.49299]
[1762479916326,0.49295,3288.1,3287.7,0.49299]
[1762479916628,3.2078,3288.2,3287.6,0.00456093]
[1762479916828,0.00456093,3288.3,3288.1,0.49294]
[1762479917529,0.00456093,3288.3,3288.2,0.2883]
[1762479918026,0.00456093,3288.3,3287.6,0.00456093]
[1762479918027,3.21236093,3288.3,3287.7,0.2883]
[1762479918216,3.2078,3287.9,3287.6,0.00456093]
[1762479918421,0.49293,3288.2,3287.7,0.493]
[1762479918622,0.49293,3288.2,3287.6,0.00456093]
[1762479918623,3.21236093,3288.3,3287.6,0.00456093]
[1762479918823,3.21236093,3288.3,3288.2,0.2883]
[1762479919224,3.2078,3289.1,3289.0,0.78111]
[1762479919526,3.19225491,3289.5,3289.4,0.78105]
[1762479919726,3.2078,3290.2,3290.0,0.49266]
[1762479920227,3.21149175,3290.2,3290.1,0.2883]
[1762479920426,0.00456093,3290.4,3290.1,11.4961]
[1762479920728,0.00456093,3290.4,3290.3,0.2883]
[1762479921522,0.00807219,3290.4,3290.3,0.2883]
[1762479921728,0.49262,3290.3,3290.0,0.00325042]
[1762479921936,0.00807219,3290.4,3290.0,0.00325042]
[1762479922124,0.50068219,3290.4,3290.0,0.00325042]
[1762479922325,0.50068219,3290.4,3290.0,0.49589042]
[1762479922527,0.00807219,3290.4,3290.2,0.49262]
[1762479923030,0.00807219,3290.4,3290.0,0.67450042]
[1762479923231,3.70847219,3290.4,3290.0,0.49590042]
[1762479923828,3.21587219,3290.4,3290.1,0.49264]
[1762479924023,0.00807219,3290.4,3290.2,0.49262]
[1762479924230,0.00807219,3290.4,3290.3,0.2883]
[1762479924426,0.00807219,3290.4,3290.3,3.4961]
[1762479924827,0.00807219,3290.4,3290.3,17.5745]
[1762479925132,0.00807219,3290.4,3290.3,11.4961]
[1762479925824,3.2078,3291.2,3290.7,0.2883]
[1762479926022,3.2078,3291.2,3291.1,0.78079]
[1762479926329,3.2078,3291.2,3290.4,0.1786]
[1762479926533,0.49258,3290.6,3290.3,3.70041]
[1762479926739,3.70038,3290.6,3290.3,0.49261]
[1762479926928,0.00383445,3290.6,3290.4,0.4926]
[1762479928035,0.00383445,3290.6,3290.5,0.2883]
[1762479930431,5.38e-06,3290.8,3290.7,0.2883]
[1762479930631,3.2078,3291.8,3291.7,0.7807]
[1762479931039,3.2078,3292.2,3291.7,0.2883]
[1762479931238,3.2078,3292.2,3292.1,0.78064]
[1762479931441,3.21138534,3292.2,3292.1,0.78064]
[1762479931942,3.2078,3293.0,3292.9,0.78052]
[1762479932342,3.2078,3293.0,3292.9,0.2883]
[1762479932836,0.00318176,3293.0,3292.9,0.29124848]
[1762479933041,3.50878176,3293.0,3292.9,0.00294848]
[1762479933931,3.21098176,3293.0,3292.9,0.00294848]
[1762479934835,3.50878176,3293.0,3292.9,0.00294848]
[1762479935235,0.1656,3292.8,3292.1,0.49234]
[1762479935530,0.49232,3292.3,3292.0,0.49235]
[1762479935733,0.1656,3292.8,3291.8,0.00456093]
[1762479935734,3.2078,3292.2,3291.8,0.00456093]
[1762479936131,3.2078,3292.2,3291.8,0.00710129]
[1762479936132,0.3185,3291.9,3291.8,0.00710129]
[1762479936543,0.1656,3292.1,3291.0,3.70031]
[1762479936734,0.49247,3291.3,3291.0,3.70031]
[1762479936936,0.49248,3291.2,3290.6,3.2078]
[1762479937136,3.2078,3291.6,3291.5,0.2951]
[1762479937643,3.2078,3291.6,3291.5,0.29805458]
[1762479938030,0.00456093,3291.9,3291.8,0.3148]
[1762479938245,0.00456093,3291.9,3291.8,3.5226]
[1762479938838,3.21098176,3293.0,3292.5,0.3148]
[1762479939034,3.21098176,3293.0,3292.1,0.1763]
[1762479939035,3.21098176,3293.0,3292.9,0.49222]
[1762479940137,3.21098176,3293.0,3292.8,0.49224]
[1762479940534,3.21098176,3293.0,3292.1,0.1763]
[1762479940843,3.2078,3292.6,3292.4,0.4923]
[1762479941143,3.21098176,3293.0,3292.2,3.2078]
[1762479941540,3.2078,3292.6,3291.7,0.4924]
[1762479941745,0.49232,3292.3,3292.0,0.49236]
[1762479942243,0.49229,3292.5,3291.9,3.2078]
[1762479942440,3.2078,3292.6,3291.9,3.2078]
[1762479942639,3.21098176,3293.0,3292.1,0.1763]
[1762479943643,3.21098176,3293.0,3292.8,0.49224]
[1762479944143,0.00318176,3293.0,3292.8,3.87634]
[1762479944337,0.00318176,3293.0,3292.9,8.0]
[1762479944541,0.00456093,3293.3,3292.9,8.0]
[1762479944542,0.00456093,3293.3,3293.2,0.49218]
[1762479944751,3.2078,3294.2,3294.1,0.49205]
[1762479944936,3.2078,3294.6,3294.4,0.492]
[1762479945143,3.69977,3294.6,3293.6,3.2078]
[1762479945338,3.69977,3294.6,3294.3,0.49201]
[1762479945539,3.21004069,3294.6,3294.4,0.492]
[1762479946147,0.49421069,3294.6,3294.3,0.00285984]